fUSD/lending_fUSD_20260528
["ID","MTS","AMOUNT","RATE_DAILY","PERIOD"]
[423240403,1779976249000,-2319.72410669,0.00022752,2]
[423240406,1779976249000,-200.0,0.00022899,2]
[423240400,1779976249000,-200.0,0.00022752,2]
[423240405,1779976249000,-600.0,0.00022838,7]
[423240399,1779976249000,-10652.17309792,0.00022752,2]
[423240398,1779976249000,-829.12830338,0.00022752,2]
[423240401,1779976249000,-233.5188934,0.00022752,2]
[423240407,1779976249000,-1085.0,0.00023,2]
[423240410,1779976249000,-389.0,0.00023,2]
[423240414,1779976249000,-1376.0,0.00023,2]
[423240396,1779976249000,-194.72792766,0.00022752,2]
[423240437,1779976249000,-11455.01673214,0.00023848,2]
[423240386,1779976249000,-2992.0,0.00022383,5]
[423240438,1779976249000,-200.0,0.00023848,2]
[423240463,1779976249000,-200.0,0.0002461,2]
[423240466,1779976249000,-1000.0,0.00024658,2]
[423240472,1779976249000,-208.7,0.00024886,7]
[423240474,1779976249000,-1465.79300958,0.000249,2]
[423240471,1779976249000,-450.0,0.000247,2]
[423240473,1779976249000,-208.8,0.00024886,7]
[423240477,1779976249000,-200.0,0.00024944,2]
[423240476,1779976249000,-1152.99434267,0.000249,2]
[423240475,1779976249000,-651.36354489,0.000249,2]
[423240489,1779976249000,-150.0,0.00024954,2]
[423240478,1779976249000,-225.18697532,0.00024944,2]
[423240464,1779976249000,-188.59,0.00024658,2]
[423240479,1779976249000,-300.16038308,0.00024944,2]
[423240487,1779976249000,-150.0,0.00024954,2]
[423240482,1779976249000,-379.1632941,0.00024944,2]
[423240485,1779976249000,-150.0,0.00024954,2]
[423240488,1779976249000,-150.0,0.00024954,2]
[423240483,1779976249000,-1842.0326633,0.00024944,2]
[423240480,1779976249000,-12018.20950514,0.00024944,2]
[423240486,1779976249000,-150.0,0.00024954,2]
[423240481,1779976249000,-200.0,0.00024944,2]
[423240492,1779976249000,-3549.0,0.00024954,2]
[423240490,1779976249000,-150.0,0.00024954,2]
[423240491,1779976249000,-928.0,0.00024954,2]
[423240484,1779976249000,-2682.57183977,0.00024944,2]
[423240460,1779976249000,-2586.85809042,0.00024396,2]
[423240435,1779976249000,-209.40437684,0.00023848,2]
[423240461,1779976249000,-150.0,0.000245,30]
[423240445,1779976249000,-389.0,0.00024,2]
[423240443,1779976249000,-169.0,0.00024,2]
[423240444,1779976249000,-2236.56088979,0.00024,2]
[423240439,1779976249000,-251.11897888,0.00023848,2]
[423240440,1779976249000,-1712.93078311,0.00023848,2]
[423240447,1779976249000,-500.0,0.00024,2]
[423240467,1779976249000,-500.0,0.00024658,7]
[423240446,1779976249000,-171.0,0.00024,2]
[423240450,1779976249000,-1376.0,0.00024,2]
[423240448,1779976249000,-1079.0,0.00024,2]
[423240452,1779976249000,-500.0,0.00024136,2]
[423240455,1779976249000,-217.15233878,0.00024396,2]
[423240457,1779976249000,-200.0,0.00024396,2]
[423240456,1779976249000,-11878.85235123,0.00024396,2]
[423240453,1779976249000,-3085.7,0.00024324,2]
[423240470,1779976249000,-437.4,0.000247,2]
[423240462,1779976249000,-168.1,0.00024566,2]
[423240465,1779976249000,-861.94,0.00024658,2]
[423240469,1779976249000,-208.8,0.00024658,2]
[423240468,1779976249000,-208.7,0.00024658,2]
[423240458,1779976249000,-260.4103811,0.00024396,2]
[423240454,1779976249000,-200.0,0.00024396,2]
[423240449,1779976249000,-418.0,0.00024,2]
[423240451,1779976249000,-165.15482607,0.00024,2]
[423240459,1779976249000,-1776.30922209,0.00024396,2]
[423240531,1779976250000,-445.94882,0.00025,2]
[423240536,1779976250000,-3093.650277,0.00025,2]
[423240533,1779976250000,-445.94882,0.00025,2]
[423240537,1779976250000,-3093.650277,0.00025,2]
[423240532,1779976250000,-445.94882,0.00025,2]
[423240518,1779976250000,-151.0,0.00025,2]
[423240534,1779976250000,-151.0,0.00025,2]
[423240527,1779976250000,-151.0,0.00025,2]
[423240522,1779976250000,-151.0,0.00025,2]
[423240520,1779976250000,-151.0,0.00025,2]
[423240528,1779976250000,-151.0,0.00025,2]
[423240526,1779976250000,-151.0,0.00025,2]
[423240547,1779976250000,-649.126519,0.00025,2]
[423240529,1779976250000,-151.0,0.00025,2]
[423240539,1779976250000,-190.10654966,0.00025,2]
[423240542,1779976250000,-649.126519,0.00025,2]
[423240544,1779976250000,-649.126519,0.00025,2]
[423240545,1779976250000,-578.533476,0.00025,2]
[423240543,1779976250000,-578.533476,0.00025,2]
[423240540,1779976250000,-649.126519,0.00025,2]
[423240541,1779976250000,-578.533476,0.00025,2]
[423240538,1779976250000,-3093.650277,0.00025,2]
[423240549,1779976250000,-328.19836,0.00025,2]
[423240524,1779976250000,-151.0,0.00025,2]
[423240548,1779976250000,-1090.37617276,0.00025,2]
[423240535,1779976250000,-3093.650277,0.00025,2]
[423240521,1779976250000,-151.0,0.00025,2]
[423240506,1779976250000,-7234.32424484,0.00025,2]
[423240523,1779976250000,-151.0,0.00025,2]
[423240493,1779976250000,-525.0,0.00024954,2]
[423240494,1779976250000,-1225.0,0.00024954,2]
[423240495,1779976250000,-1455.64,0.00024999,2]
[423240496,1779976250000,-1455.64,0.00024999,2]
[423240498,1779976250000,-1455.64,0.00024999,2]
[423240497,1779976250000,-1455.64,0.00024999,2]
[423240501,1779976250000,-1000.0,0.00025,2]
[423240499,1779976250000,-1455.74950274,0.00024999,2]
[423240500,1779976250000,-1130.45375195,0.00025,2]
[423240503,1779976250000,-619.82909925,0.00025,2]
[423240513,1779976250000,-1087.29192605,0.00025,2]
[423240502,1779976250000,-540.0,0.00025,2]
[423240519,1779976250000,-151.0,0.00025,2]
[423240505,1779976250000,-21796.10948775,0.00025,2]
[423240507,1779976250000,-2233.05957326,0.00025,2]
[423240511,1779976250000,-210.56846515,0.00025,2]
[423240559,1779976250000,-377.631499,0.00025,2]
[423240508,1779976250000,-169.8000364,0.00025,2]
[423240509,1779976250000,-567836.85442138,0.00025,2]
[423240510,1779976250000,-323.0,0.00025,3]
[423240512,1779976250000,-1811.37446814,0.00025,2]
[423240515,1779976250000,-392.11095282,0.00025,2]
[423240516,1779976250000,-151.0,0.00025,2]
[423240517,1779976250000,-151.0,0.00025,2]
[423240514,1779976250000,-180.87724896,0.00025,2]
[423240525,1779976250000,-250.0,0.00025,2]
[423240504,1779976250000,-3088.4174624,0.00025,2]
[423240551,1779976250000,-328.19836,0.00025,2]
[423240530,1779976250000,-445.94882,0.00025,2]
[423240553,1779976250000,-151.0,0.00025,2]
[423240576,1779976250000,-246.725308,0.00025,2]
[423240586,1779976250000,-245.39161669,0.00025397,2]
[423240588,1779976250000,-200.0,0.000254,2]
[423240589,1779976250000,-200.0,0.00025492,2]
[423240597,1779976250000,-206.84,0.00025753,2]
[423240595,1779976250000,-465.10414865,0.00025499,2]
[423240591,1779976250000,-12774.14957409,0.00025492,2]
[423240593,1779976250000,-1910.18787185,0.00025492,2]
[423240587,1779976250000,-197.39158197,0.00025397,2]
[423240590,1779976250000,-233.5188934,0.00025492,2]
[423240592,1779976250000,-200.0,0.00025492,2]
[423240596,1779976250000,-10618.88800289,0.000256,2]
[423240594,1779976250000,-2781.82699784,0.00025492,2]
[423240599,1779976250000,-609.99350778,0.0002599,2]
[423240609,1779976250000,-252.23575488,0.0002604,2]
[423240598,1779976250000,-309.98906472,0.000258,30]
[423240601,1779976250000,-4591.64384435,0.00026,2]
[423240602,1779976250000,-250.0,0.00026,2]
[423240600,1779976250000,-219.76345652,0.00026,2]
[423240603,1779976250000,-500.0,0.00026,2]
[423240605,1779976250000,-500.0,0.00026028,7]
[423240604,1779976250000,-550.0,0.00026,2]
[423240606,1779976250000,-200.0,0.0002604,2]
[423240607,1779976250000,-242.15909246,0.0002604,2]
[423240608,1779976250000,-8240.82782969,0.0002604,2]
[423240610,1779976250000,-1980.8648231,0.0002604,2]
[423240561,1779976250000,-377.631499,0.00025,2]
[423240582,1779976250000,-1066.48,0.0002525,2]
[423240579,1779976250000,-1066.46,0.00025248,2]
[423240546,1779976250000,-578.533476,0.00025,2]
[423240578,1779976250000,-1066.46,0.00025246,2]
[423240584,1779976250000,-1066.46,0.0002525,2]
[423240550,1779976250000,-328.19836,0.00025,2]
[423240552,1779976250000,-328.19836,0.00025,2]
[423240554,1779976250000,-151.0,0.00025,2]
[423240556,1779976250000,-151.0,0.00025,2]
[423240555,1779976250000,-151.0,0.00025,2]
[423240558,1779976250000,-377.631499,0.00025,2]
[423240557,1779976250000,-377.631499,0.00025,2]
[423240562,1779976250000,-1377.41842051,0.00025,2]
[423240564,1779976250000,-246.725308,0.00025,2]
[423240567,1779976250000,-488.97,0.00025,2]
[423240573,1779976250000,-488.97,0.00025,2]
[423240565,1779976250000,-488.97,0.00025,2]
[423240560,1779976250000,-419.33523892,0.00025,2]
[423240566,1779976250000,-488.97,0.00025,2]
[423240563,1779976250000,-246.725308,0.00025,2]
[423240574,1779976250000,-488.97,0.00025,2]
[423240585,1779976250000,-2444.12,0.00025341,7]
[423240581,1779976250000,-1066.46,0.00025248,2]
[423240577,1779976250000,-1066.46,0.00025246,2]
[423240580,1779976250000,-1066.46,0.00025248,2]
[423240575,1779976250000,-488.97,0.00025,2]
[423240570,1779976250000,-488.97,0.00025,2]
[423240571,1779976250000,-246.725308,0.00025,2]
[423240569,1779976250000,-488.97,0.00025,2]
[423240572,1779976250000,-488.97,0.00025,2]
[423240568,1779976250000,-488.97,0.00025,2]
[423240583,1779976250000,-1066.46,0.0002525,2]
[423240647,1779976251000,-200.0,0.00027136,2]
[423240653,1779976251000,-163.59441113,0.00027397,7]
[423240656,1779976251000,-197.39158197,0.00027397,30]
[423240655,1779976251000,-193.51771649,0.00027397,30]
[423240640,1779976251000,-1051.32860305,0.00027,2]
[423240645,1779976251000,-2584.1567,0.0002701,2]
[423240649,1779976251000,-200.0,0.00027249,2]
[423240657,1779976251000,-388.35324219,0.00027397,2]
[423240646,1779976251000,-2444.12,0.00027121,7]
[423240650,1779976251000,-180.84321921,0.000273,30]
[423240641,1779976251000,-530.0,0.00027,2]
[423240648,1779976251000,-260.4103811,0.00027136,2]
[423240652,1779976251000,-4178.98740951,0.0002739,2]
[423240659,1779976251000,-1003.83,0.00027397,2]
[423240651,1779976251000,-8255.73588221,0.0002739,2]
[423240658,1779976251000,-1500.0,0.00027397,2]
[423240660,1779976251000,-188.59,0.00027397,8]
[423240667,1779976251000,-151.0,0.00027397,2]
[423240661,1779976251000,-527.87,0.00027397,2]
[423240663,1779976251000,-1020.65,0.00027397,2]
[423240665,1779976251000,-300.0,0.00027397,2]
[423240669,1779976251000,-151.0,0.00027397,2]
[423240662,1779976251000,-861.94,0.00027397,2]
[423240664,1779976251000,-151.0,0.00027397,2]
[423240668,1779976251000,-151.0,0.00027397,2]
[423240643,1779976251000,-167.23548649,0.00027,2]
[423240666,1779976251000,-151.0,0.00027397,2]
[423240654,1779976251000,-228.05136349,0.00027397,30]
[423240642,1779976251000,-2000.0,0.00027,2]
[423240632,1779976251000,-450.0,0.00026642,2]
[423240635,1779976251000,-1953.0,0.000267,7]
[423240670,1779976251000,-151.0,0.00027397,2]
[423240614,1779976251000,-516.80495749,0.000261,2]
[423240613,1779976251000,-5149.0,0.000261,2]
[423240616,1779976251000,-251.24370789,0.0002615,2]
[423240620,1779976251000,-1532.3533118,0.00026256,2]
[423240615,1779976251000,-321.0,0.000261,2]
[423240621,1779976251000,-3085.7,0.00026296,2]
[423240611,1779976251000,-2884.75459676,0.0002604,2]
[423240617,1779976251000,-1948.67648164,0.0002615,2]
[423240618,1779976251000,-200.0,0.0002619,2]
[423240619,1779976251000,-1640.6841621,0.00026256,2]
[423240623,1779976251000,-366.94340816,0.00026397,2]
[423240622,1779976251000,-245.39161669,0.00026397,2]
[423240624,1779976251000,-27914.91476775,0.000264,2]
[423240626,1779976251000,-621.78829552,0.00026586,2]
[423240629,1779976251000,-1552.80451383,0.00026588,2]
[423240625,1779976251000,-594.6841404,0.00026494,2]
[423240627,1779976251000,-200.0,0.00026588,2]
[423240630,1779976251000,-2991.49051684,0.00026588,2]
[423240628,1779976251000,-251.11897888,0.00026588,2]
[423240631,1779976251000,-216.32,0.00026612,2]
[423240634,1779976251000,-195.2307973,0.00026679,2]
[423240633,1779976251000,-276.0,0.00026666,10]
[423240637,1779976251000,-500.0,0.00026948,2]
[423240638,1779976251000,-200.0,0.0002698,2]
[423240639,1779976251000,-250.0,0.00027,2]
[423240644,1779976251000,-250.0,0.00027,2]
[423240636,1779976251000,-336.34,0.00026806,15]
[423240612,1779976251000,-219.50345658,0.000261,2]
[423240680,1779976251000,-494.59,0.000274,7]
[423240671,1779976251000,-10024.04,0.00027397,10]
[423240701,1779976251000,-154.59,0.00027618,30]
[423240699,1779976251000,-154.67,0.00027584,7]
[423240702,1779976251000,-154.67,0.00027618,30]
[423240708,1779976251000,-154.59,0.00027686,7]
[423240710,1779976251000,-1513.77,0.00027711,7]
[423240709,1779976251000,-154.67,0.00027686,7]
[423240715,1779976251000,-706.28,0.00027732,2]
[423240719,1779976251000,-154.59,0.00027754,2]
[423240714,1779976251000,-154.67,0.0002772,30]
[423240716,1779976251000,-1307.2,0.00027732,2]
[423240717,1779976251000,-1303.76,0.00027732,2]
[423240712,1779976251000,-217.69,0.00027715,2]
[423240718,1779976251000,-152.0,0.00027738,3]
[423240711,1779976251000,-1513.67,0.00027711,7]
[423240720,1779976251000,-154.67,0.00027754,2]
[423240713,1779976251000,-154.59,0.0002772,30]
[423240721,1779976251000,-200.0,0.0002777,2]
[423240732,1779976251000,-706.28,0.00027892,30]
[423240731,1779976251000,-154.67,0.00027891,7]
[423240723,1779976251000,-154.67,0.00027788,7]
[423240724,1779976251000,-154.59,0.00027822,30]
[423240722,1779976251000,-154.59,0.00027788,7]
[423240726,1779976251000,-154.59,0.00027857,2]
[423240725,1779976251000,-154.67,0.00027822,30]
[423240729,1779976251000,-1513.67,0.00027872,2]
[423240728,1779976251000,-1513.77,0.00027872,2]
[423240727,1779976251000,-154.67,0.00027857,2]
[423240700,1779976251000,-218.32,0.000276,7]
[423240696,1779976251000,-1307.2,0.00027572,7]
[423240730,1779976251000,-154.59,0.00027891,7]
[423240698,1779976251000,-154.59,0.00027584,7]
[423240707,1779976251000,-270.0455652,0.00027684,2]
[423240681,1779976251000,-204.46,0.000274,2]
[423240682,1779976251000,-1227.83,0.0002744,7]
[423240674,1779976251000,-5840.68,0.00027397,2]
[423240676,1779976251000,-1882.75,0.00027397,2]
[423240678,1779976251000,-211.56,0.000274,7]
[423240673,1779976251000,-163.59441113,0.00027397,7]
[423240675,1779976251000,-18757.9,0.00027397,2]
[423240679,1779976251000,-577.88,0.000274,14]
[423240677,1779976251000,-500.0,0.00027398,7]
[423240694,1779976251000,-154.67,0.0002755,2]
[423240693,1779976251000,-1303.76,0.0002755,30]
[423240692,1779976251000,-1513.67,0.0002755,30]
[423240684,1779976251000,-218.32,0.000275,7]
[423240672,1779976251000,-8353.36,0.00027397,10]
[423240685,1779976251000,-1953.0,0.000275,7]
[423240695,1779976251000,-706.28,0.00027572,7]
[423240705,1779976251000,-154.67,0.00027652,2]
[423240703,1779976251000,-200.0,0.00027622,2]
[423240697,1779976251000,-1303.76,0.00027572,7]
[423240690,1779976251000,-1513.77,0.0002755,30]
[423240704,1779976251000,-154.59,0.00027652,2]
[423240691,1779976251000,-154.59,0.0002755,2]
[423240689,1779976251000,-1307.2,0.0002755,30]
[423240686,1779976251000,-1953.0,0.000275,7]
[423240683,1779976251000,-204.44143807,0.000275,2]
[423240687,1779976251000,-150.0,0.00027521,2]
[423240688,1779976251000,-706.28,0.0002755,30]
[423240706,1779976251000,-200.0,0.00027684,2]
[423240780,1779976252000,-1513.67,0.00028194,7]
[423240765,1779976252000,-1307.2,0.00028053,7]
[423240759,1779976252000,-215.50460005,0.00028,10]
[423240764,1779976252000,-706.28,0.00028053,7]
[423240768,1779976252000,-154.67,0.00028061,2]
[423240761,1779976252000,-154.67,0.00028027,30]
[423240763,1779976252000,-1513.67,0.00028033,30]
[423240767,1779976252000,-154.59,0.00028061,2]
[423240770,1779976252000,-150.0,0.00028082,2]
[423240769,1779976252000,-357.0,0.0002808,2]
[423240774,1779976252000,-154.59,0.00028095,7]
[423240773,1779976252000,-356.61535055,0.00028082,2]
[423240772,1779976252000,-302.46,0.00028082,2]
[423240771,1779976252000,-213.0,0.00028082,2]
[423240781,1779976252000,-706.28,0.00028213,2]
[423240762,1779976252000,-1513.77,0.00028033,30]
[423240775,1779976252000,-154.67,0.00028095,7]
[423240778,1779976252000,-154.67,0.0002813,30]
[423240779,1779976252000,-1513.77,0.00028194,7]
[423240776,1779976252000,-152.0,0.00028097,120]
[423240777,1779976252000,-154.64,0.0002813,30]
[423240783,1779976252000,-1303.76,0.00028213,2]
[423240784,1779976252000,-200.0,0.00028223,2]
[423240782,1779976252000,-1307.2,0.00028213,2]
[423240758,1779976252000,-215.50460005,0.00028,7]
[423240749,1779976252000,-150.0,0.00027982,2]
[423240757,1779976252000,-600.0,0.00028,2]
[423240795,1779976252000,-150.0,0.0002842,2]
[423240733,1779976252000,-1307.2,0.00027892,30]
[423240736,1779976252000,-154.67,0.00027925,30]
[423240738,1779976252000,-150.0,0.00027954,2]
[423240734,1779976252000,-1303.76,0.00027892,30]
[423240737,1779976252000,-150.0,0.00027954,2]
[423240735,1779976252000,-154.59,0.00027925,30]
[423240744,1779976252000,-154.59,0.00027959,2]
[423240739,1779976252000,-150.0,0.00027954,2]
[423240740,1779976252000,-3549.0,0.00027954,2]
[423240742,1779976252000,-525.0,0.00027954,2]
[423240766,1779976252000,-1303.76,0.00028053,7]
[423240741,1779976252000,-928.0,0.00027954,2]
[423240746,1779976252000,-150.0,0.00027981,2]
[423240745,1779976252000,-154.67,0.00027959,2]
[423240752,1779976252000,-154.67,0.00027993,7]
[423240750,1779976252000,-150.0,0.00027982,2]
[423240748,1779976252000,-150.0,0.00027982,2]
[423240751,1779976252000,-154.59,0.00027993,7]
[423240747,1779976252000,-150.0,0.00027982,2]
[423240754,1779976252000,-160.0,0.00028,2]
[423240753,1779976252000,-564.68005363,0.00028,2]
[423240755,1779976252000,-643.0,0.00028,2]
[423240760,1779976252000,-154.59,0.00028027,30]
[423240743,1779976252000,-1225.0,0.00027954,2]
[423240756,1779976252000,-250.0,0.00028,2]
[423240787,1779976252000,-1191.0,0.00028263,7]
[423240785,1779976252000,-200.0,0.00028232,2]
[423240812,1779976252000,-5000.01,0.00028605,2]
[423240815,1779976252000,-5000.01,0.0002866,2]
[423240814,1779976252000,-156.74186108,0.0002864,2]
[423240818,1779976252000,-1513.67,0.00028677,7]
[423240822,1779976252000,-1307.2,0.00028693,2]
[423240821,1779976252000,-1307.32,0.00028693,2]
[423240824,1779976252000,-5000.01,0.00028757,2]
[423240823,1779976252000,-1303.76,0.00028693,2]
[423240825,1779976252000,-5000.01,0.00028766,2]
[423240826,1779976252000,-500.0,0.00028768,7]
[423240829,1779976252000,-5000.01,0.00028832,2]
[423240819,1779976252000,-1108.9892261,0.00028681,3]
[423240830,1779976252000,-5000.01,0.00028847,2]
[423240832,1779976252000,-150.0,0.00028897,2]
[423240831,1779976252000,-706.3,0.00028855,30]
[423240837,1779976252000,-1486.40310543,0.00029,2]
[423240834,1779976252000,-5000.01,0.00028929,2]
[423240838,1779976252000,-513.10554708,0.00029,2]
[423240835,1779976252000,-5000.01,0.00028938,2]
[423240836,1779976252000,-172.70707606,0.00028971,2]
[423240833,1779976252000,-200.0,0.000289,10]
[423240840,1779976252000,-510.57656563,0.00029,2]
[423240839,1779976252000,-219.49784012,0.00029,2]
[423240786,1779976252000,-280.03725111,0.00028232,2]
[423240828,1779976252000,-176.41439827,0.0002878,2]
[423240820,1779976252000,-706.28,0.00028693,2]
[423240827,1779976252000,-200.0,0.0002878,2]
[423240816,1779976252000,-1513.7,0.00028677,7]
[423240794,1779976252000,-1303.76,0.00028373,30]
[423240817,1779976252000,-1513.77,0.00028677,7]
[423240788,1779976252000,-3085.7,0.00028267,2]
[423240789,1779976252000,-494.59,0.000283,7]
[423240790,1779976252000,-1513.77,0.00028355,2]
[423240792,1779976252000,-706.28,0.00028373,30]
[423240793,1779976252000,-1307.2,0.00028373,30]
[423240796,1779976252000,-150.0,0.0002842,2]
[423240803,1779976252000,-1513.77,0.00028516,30]
[423240797,1779976252000,-150.0,0.0002842,2]
[423240802,1779976252000,-168.1,0.00028493,2]
[423240798,1779976252000,-150.0,0.0002842,2]
[423240791,1779976252000,-1513.67,0.00028355,2]
[423240805,1779976252000,-706.28,0.00028533,7]
[423240810,1779976252000,-577.88,0.000286,14]
[423240811,1779976252000,-218.32,0.000286,7]
[423240809,1779976252000,-200.0,0.0002856,2]
[423240813,1779976252000,-5000.01,0.00028632,2]
[423240800,1779976252000,-150.0,0.0002842,2]
[423240808,1779976252000,-218.77102392,0.00028542,7]
[423240799,1779976252000,-150.0,0.0002842,2]
[423240807,1779976252000,-1303.76,0.00028533,7]
[423240806,1779976252000,-1307.2,0.00028533,7]
[423240804,1779976252000,-1513.67,0.00028516,30]
[423240801,1779976252000,-150.0,0.0002842,2]
[423240890,1779976253000,-155.0,0.00029844,30]
[423240887,1779976253000,-221.0,0.00029791,30]
[423240882,1779976253000,-1079.0,0.00029791,30]
[423240889,1779976253000,-1085.0,0.00029844,30]
[423240885,1779976253000,-1376.0,0.00029791,30]
[423240875,1779976253000,-1000.0,0.00029582,2]
[423240872,1779976253000,-465.10414865,0.00029466,2]
[423240873,1779976253000,-1000.0,0.00029582,2]
[423240871,1779976253000,-200.0,0.000294,2]
[423240877,1779976253000,-1000.0,0.00029582,2]
[423240884,1779976253000,-418.0,0.00029791,30]
[423240876,1779976253000,-1000.0,0.00029582,2]
[423240891,1779976253000,-169.0,0.00029844,30]
[423240895,1779976253000,-175.57190094,0.00029878,2]
[423240888,1779976253000,-172.70707606,0.0002984,2]
[423240883,1779976253000,-159.0,0.00029791,30]
[423240886,1779976253000,-156.0,0.00029791,30]
[423240881,1779976253000,-171.0,0.00029791,30]
[423240893,1779976253000,-389.0,0.00029848,30]
[423240903,1779976253000,-158.62994679,0.0002998,7]
[423240892,1779976253000,-2233.0,0.00029848,30]
[423240902,1779976253000,-313.48372216,0.0002998,2]
[423240900,1779976253000,-169.43,0.00029912,3]
[423240901,1779976253000,-157.11732528,0.0002998,7]
[423240897,1779976253000,-166.84303589,0.00029886,2]
[423240894,1779976253000,-200.0,0.00029876,2]
[423240879,1779976253000,-1000.0,0.000297,7]
[423240880,1779976253000,-500.0,0.0002976,2]
[423240874,1779976253000,-1000.0,0.00029582,2]
[423240844,1779976253000,-401.49,0.00029,2]
[423240896,1779976253000,-437.54204784,0.00029878,7]
[423240842,1779976253000,-352.9718208,0.00029,2]
[423240841,1779976253000,-10296.13,0.00029,2]
[423240843,1779976253000,-637.08,0.00029,2]
[423240845,1779976253000,-446.49,0.00029,2]
[423240847,1779976253000,-431.4,0.00029,2]
[423240848,1779976253000,-764.17,0.00029,2]
[423240850,1779976253000,-250.0,0.00029,2]
[423240851,1779976253000,-2444.12,0.00029,7]
[423240846,1779976253000,-436.43,0.00029,2]
[423240849,1779976253000,-930.55,0.00029,2]
[423240854,1779976253000,-743.72456515,0.00029,2]
[423240853,1779976253000,-2500.0,0.00029,2]
[423240852,1779976253000,-1395.76,0.00029,2]
[423240878,1779976253000,-577.88,0.000296,14]
[423240856,1779976253000,-1012.96,0.00029,2]
[423240864,1779976253000,-330.0,0.00029184,12]
[423240867,1779976253000,-494.59,0.000292,7]
[423240865,1779976253000,-366.0861198,0.00029199,2]
[423240855,1779976253000,-2382.29352052,0.00029,2]
[423240857,1779976253000,-199.0,0.00029,2]
[423240858,1779976253000,-5678.78,0.00029,2]
[423240859,1779976253000,-189.53,0.00029,2]
[423240861,1779976253000,-500.0,0.00029,2]
[423240862,1779976253000,-5000.01,0.00029082,2]
[423240863,1779976253000,-1154.16,0.00029086,7]
[423240860,1779976253000,-1911.5,0.00029,2]
[423240868,1779976253000,-218.32,0.000292,7]
[423240869,1779976253000,-790.72217612,0.00029325,2]
[423240866,1779976253000,-341.9142398,0.00029199,2]
[423240898,1779976253000,-1980.75330424,0.000299,2]
[423240870,1779976253000,-200.0,0.00029328,2]
[423240915,1779976253000,-1117.33,0.00030184,7]
[423240931,1779976253000,-1079.0,0.00030791,30]
[423240936,1779976253000,-221.0,0.00030791,30]
[423240934,1779976253000,-1376.0,0.00030791,30]
[423240935,1779976253000,-156.0,0.00030791,30]
[423240939,1779976253000,-155.0,0.00030844,30]
[423240938,1779976253000,-1085.0,0.00030844,30]
[423240943,1779976253000,-258.43847457,0.00030873,2]
[423240944,1779976253000,-293.57987498,0.00030873,2]
[423240947,1779976253000,-285.4477405,0.00030873,7]
[423240946,1779976253000,-470.22558325,0.00030873,2]
[423240950,1779976253000,-152.0,0.00030937,4]
[423240949,1779976253000,-1577.91475067,0.00030932,30]
[423240945,1779976253000,-314.23465056,0.00030873,7]
[423240933,1779976253000,-418.0,0.00030791,30]
[423240952,1779976253000,-3549.0,0.00030954,2]
[423240948,1779976253000,-317.25989357,0.00030873,7]
[423240953,1779976253000,-928.0,0.00030954,2]
[423240951,1779976253000,-150.0,0.00030954,2]
[423240956,1779976253000,-10139.49383742,0.00031,2]
[423240955,1779976253000,-1225.0,0.00030954,2]
[423240964,1779976253000,-577.88,0.000311,14]
[423240960,1779976253000,-215.50460005,0.00031,30]